fUST/lending_fUST_20240624
["ID","MTS","AMOUNT","RATE_DAILY","PERIOD"]
[330233935,1719198646827,-1061.45,0.00016712,2]
[330233936,1719198646840,-500.0,0.00016712,2]
[330233937,1719198646851,-500.0,0.00016712,2]
[330233938,1719198646863,-500.0,0.00016712,2]
[330233939,1719198646874,-500.0,0.00016712,2]
[330233940,1719198646885,-500.0,0.00016712,2]
[330233941,1719198646902,-500.0,0.00016712,2]
[330233942,1719198646913,-630.38,0.00016712,2]
[330233943,1719198646935,-554.6,0.00016712,2]
[330233944,1719198646946,-1136.28,0.00016712,2]
[330233945,1719198646958,-1333.36,0.00016712,2]
[330233946,1719198646969,-500.0,0.00016712,2]
[330233947,1719198646980,-500.0,0.00016712,2]
[330233948,1719198646992,-500.0,0.00016712,2]
[330233949,1719198647004,-643.12,0.00016712,2]
[330233950,1719198647016,-1476.79,0.00016712,2]
[330233951,1719198647027,-955.52,0.00016712,2]
[330233952,1719198647039,-602.53,0.00016712,2]
[330233953,1719198647050,-500.0,0.00016712,2]
[330233954,1719198647062,-500.0,0.00016712,2]
[330233955,1719198647073,-784.17,0.00016712,2]
[330233956,1719198647085,-500.0,0.00016712,2]
[330233957,1719198647097,-500.0,0.00016712,2]
[330233958,1719198647108,-500.0,0.00016712,2]
[330233961,1719198647120,-500.0,0.00016712,2]
[330233964,1719198647132,-823.51,0.00016712,2]
[330233966,1719198647145,-500.0,0.00016712,2]
[330233967,1719198647156,-500.0,0.00016712,2]
[330233968,1719198647169,-500.0,0.00016712,2]
[330233969,1719198647180,-500.0,0.00016712,2]
[330233970,1719198647191,-400.79903401,0.00016712,2]
[330233971,1719198647556,-92.50096599,0.00016712,2]
[330233972,1719198647570,-179.0,0.00016712,2]
[330233973,1719198647580,-37.61134646,0.00016712,2]
[330233986,1719198650214,-300.0,0.00016438,2]
[330233987,1719198822233,3000.0,0.000225,30]
[330233990,1719199261787,-1000.0,0.00015636,2]
[330233993,1719199307762,-10000.0,0.00015636,2]
[330233998,1719199418171,3000.0,0.000225,30]
[330234012,1719199733995,224.86,0.00026,120]
[330234041,1719199832614,-892.41994913,0.0001514,2]
[330234043,1719199832627,-412.60757393,0.0001514,2]
[330234045,1719199832638,-1285.47955874,0.0001514,2]
[330234199,1719199841365,-679.23975741,0.0001514,2]
[330234200,1719199841525,-21630.25316079,0.0001514,2]
[330234201,1719199841535,-154.79103211,0.00015838,2]
[330234202,1719199841545,-216.88239442,0.00015883,2]
[330234203,1719199841556,-600.0,0.00016044,2]
[330234204,1719199841566,-876.0,0.00016052,2]
[330234205,1719199841576,-779.79068807,0.00016211,2]
[330234206,1719199841586,-620.00746126,0.00016278,2]
[330234207,1719199841598,-2292.57094443,0.00016338,2]
[330234208,1719199841607,-500.0,0.00016438,2]
[330234209,1719199841616,-500.0,0.00016438,2]
[330234210,1719199841625,-500.0,0.00016438,2]
[330234211,1719199841636,-500.0,0.00016438,2]
[330234212,1719199841645,-500.0,0.00016438,2]
[330234213,1719199841655,-500.0,0.00016438,2]
[330234214,1719199841665,-500.0,0.00016438,2]
[330234215,1719199841674,-500.0,0.00016438,2]
[330234216,1719199841684,-500.0,0.00016438,2]
[330234217,1719199841693,-500.0,0.00016438,2]
[330234218,1719199841702,-500.0,0.00016438,2]
[330234219,1719199841712,-577.84,0.00016438,2]
[330234220,1719199841722,-552.32,0.00016438,2]
[330234221,1719199841731,-500.0,0.00016438,2]
[330234222,1719199841741,-636.19,0.00016438,2]
[330234223,1719199841751,-500.0,0.00016438,2]
[330234224,1719199841761,-822.14,0.00016438,2]
[330234225,1719199841771,-500.0,0.00016438,2]
[330234226,1719199841781,-768.79,0.00016438,2]
[330234227,1719199841791,-500.0,0.00016438,2]
[330234228,1719199841801,-500.0,0.00016438,2]
[330234229,1719199841811,-290.84339352,0.00016438,2]
[330234230,1719199841821,-500.0,0.00016438,2]
[330234231,1719199841830,-500.0,0.00016438,2]
[330234232,1719199841840,-500.0,0.00016438,2]
[330234233,1719199841850,-503.13592416,0.00016438,2]
[330234234,1719199841860,-754.89,0.00016438,2]
[330234235,1719199841869,-500.0,0.00016438,2]
[330234236,1719199841881,-577.76616728,0.00016438,2]
[330234237,1719199841893,-975.17,0.00016438,2]
[330234238,1719199841902,-500.0,0.00016438,2]
[330234239,1719199841912,-500.0,0.00016438,2]
[330234240,1719199841923,-622.94,0.00016438,2]
[330234241,1719199841933,-500.0,0.00016438,2]
[330234242,1719199841943,-500.0,0.00016438,2]
[330234243,1719199841952,-2367.99,0.00016438,2]
[330234244,1719199841965,-500.0,0.00016438,2]
[330234245,1719199841975,-508.39,0.00016438,2]
[330234246,1719199841985,-500.0,0.00016438,2]
[330234247,1719199841995,-500.0,0.00016438,2]
[330234248,1719199842004,-258.18099858,0.00016438,2]
[330234283,1719199845083,-241.81900142,0.00016438,2]
[330234284,1719199845094,-500.0,0.00016438,2]
[330234287,1719199845104,-548.08887663,0.00016438,2]
[330234289,1719199845116,-41.43112337,0.00016438,2]
[330234291,1719199845126,-260.7755845,0.00016438,2]
[330234292,1719199845138,-780.8144155,0.00016438,2]
[330234293,1719199845148,-1091.09065178,0.00016438,2]
[330234294,1719199845160,-262.63934822,0.00016438,2]
[330234295,1719199845170,-815.86063178,0.00016438,2]
[330234320,1719199847068,-60.03936822,0.00016438,2]
[330234321,1719199847078,-832.12215253,0.00016438,2]
[330234322,1719199847090,-390.12784747,0.00016438,2]
[330234323,1719199847100,-500.0,0.00016438,2]
[330234324,1719199847109,-500.0,0.00016438,2]
[330234325,1719199847119,-718.82,0.00016438,2]
[330234326,1719199847128,-500.0,0.00016438,2]
[330234327,1719199847138,-500.0,0.00016438,2]
[330234328,1719199847148,-500.0,0.00016438,2]
[330234329,1719199847157,-500.0,0.00016438,2]
[330234330,1719199847166,-500.0,0.00016438,2]
[330234331,1719199847176,-500.0,0.00016438,2]
[330234332,1719199847186,-292.69214599,0.00016438,2]
[330234339,1719200617649,3000.0,0.000225,30]
[330234341,1719200969156,-547.22548017,0.00015268,2]
[330234342,1719200969365,-252.95106976,0.00015268,2]
[330234379,1719201032336,-386.01217285,0.00015268,2]
[330234464,1719201043788,-570.499992,0.00015268,2]
[330234465,1719201043800,-280.000005,0.00015268,2]
[330234482,1719201046297,-1023.67334161,0.00015268,2]
[330234483,1719201046308,-514.55065191,0.00015268,2]
[330234484,1719201046320,-1229.33739131,0.00015268,2]
[330234485,1719201046339,-8253.28067214,0.00015268,2]
[330234486,1719201046350,-2139.22843463,0.00015268,2]
[330234487,1719201046366,-302.46484728,0.00015268,2]
[330234488,1719201046383,-7666.58884882,0.00015268,2]
[330234490,1719201213869,3000.0,0.000225,30]
[330234492,1719201473369,500.0,0.00014506,2]
[330234493,1719201538818,13015.586403,0.00014506,2]
[330234494,1719201576380,500.0,0.00014506,2]
[330234495,1719201614821,8677.057602,0.00014506,2]
[330234497,1719201683143,500.0,0.00014506,2]
[330234498,1719201748325,7230.881335,0.00014506,2]
[330234499,1719201778328,7230.881335,0.00014506,2]
[330234500,1719201791253,500.0,0.00013136,2]
[330234501,1719201792882,500.0,0.0001478,2]
[330234503,1719201813466,3000.0,0.000225,30]
[330234504,1719201871347,3155.9032458,0.00014382,2]
[330234505,1719201873841,1000.0,0.00022,30]
[330234506,1719201894878,500.0,0.00013136,2]
[330234507,1719201896479,500.0,0.0001478,2]
[330234508,1719201931332,3767.28917554,0.0001478,2]
[330234509,1719201994362,3422.40090366,0.0001478,2]
[330234510,1719202005619,500.0,0.00013136,2]
[330234511,1719202055369,3767.28917554,0.00013136,2]
[330234512,1719202146176,-500.0,0.0001478,2]
[330234513,1719202162350,3767.28917554,0.00013136,2]
[330234514,1719202192069,500.0,0.00013136,2]
[330234515,1719202193653,500.0,0.0001478,2]
[330234566,1719202238257,-154.79103211,0.00015044,2]
[330234567,1719202238266,-239.56788705,0.00015075,2]
[330234568,1719202238276,-207.71530322,0.00015114,2]
[330234569,1719202238285,-159.35965211,0.00015124,2]
[330234570,1719202238295,-195.47966853,0.00015139,2]
[330234571,1719202238304,-11118.98907716,0.00015139,2]
[330234572,1719202238314,-11118.98907716,0.00015152,2]
[330234573,1719202238324,-42180.60213988,0.00015302,2]
[330234574,1719202238334,-2647.51345546,0.0001531,2]
[330234575,1719202238344,-2647.51345546,0.0001531,2]
[330234576,1719202238354,-2005.99957642,0.00015368,2]
[330234577,1719202238364,-2115.26284951,0.00015439,2]
[330234578,1719202238373,-9601.79213166,0.00015468,2]
[330234579,1719202238383,-9601.79213166,0.00015468,2]
[330234580,1719202238392,-2129.2320514,0.00015881,2]
[330234581,1719202238401,-490.28883306,0.00015881,2]
[330234582,1719202238410,-524.41677193,0.00015883,2]
[330234583,1719202238419,-1487.2316115,0.00015917,2]
[330234584,1719202238428,-3767.28917554,0.00015922,2]
[330234585,1719202238437,-947.4992689,0.00015934,2]
[330234586,1719202238446,-990.65106447,0.00015934,2]
[330234587,1719202238455,-1102.94117698,0.00015999,2]
[330234588,1719202238464,-1251.33626623,0.00016,2]
[330234589,1719202238473,-888.24270622,0.00016001,2]
[330234590,1719202238482,-565.7746747,0.00016101,2]
[330234591,1719202238491,-153.0,0.00016102,2]
[330234592,1719202238500,-153.0,0.00016102,2]
[330234593,1719202238509,-153.0,0.00016102,2]
[330234594,1719202238518,-155.37854107,0.00016128,2]
[330234595,1719202238528,-597.70730701,0.00016128,2]
[330234596,1719202238537,-876.0,0.00016129,2]
[330234597,1719202238546,-401.65252924,0.00016192,2]
[330234598,1719202238555,-549.71041124,0.00016215,2]
[330234599,1719202238564,-164.371,0.00016217,2]
[330234600,1719202238574,-10051.321518,0.00016222,2]
[330234601,1719202238584,-620.1421371,0.00016237,2]
[330234602,1719202238593,-154.79103211,0.00016401,2]
[330234603,1719202238603,-516.79936011,0.00016405,2]
[330234604,1719202238612,-500.0,0.00016424,2]
[330234605,1719202238622,-9762.73242706,0.00016435,2]
[330234606,1719202238631,-500.0,0.00016438,2]
[330234607,1719202238643,-500.0,0.00016438,2]
[330234608,1719202238652,-501.96,0.00016438,2]
[330234609,1719202238661,-500.0,0.00016438,2]
[330234610,1719202238673,-313.58579872,0.00016438,2]
[330234611,1719202238684,-500.0,0.00016438,2]
[330234612,1719202238693,-500.0,0.00016438,2]
[330234613,1719202238702,-500.0,0.00016438,2]
[330234614,1719202238711,-770.03,0.00016438,2]
[330234615,1719202238722,-500.0,0.00016438,2]
[330234616,1719202238731,-529.27,0.00016438,2]
[330234617,1719202238740,-500.0,0.00016438,2]
[330234618,1719202238751,-250.0,0.00016438,2]
[330234619,1719202238761,-500.0,0.00016438,2]
[330234620,1719202238771,-500.0,0.00016438,2]
[330234621,1719202238782,-500.0,0.00016438,2]
[330234622,1719202238792,-500.0,0.00016438,2]
[330234623,1719202238802,-500.0,0.00016438,2]
[330234624,1719202238812,-280.99431189,0.00016438,2]
[330234625,1719202238822,-500.0,0.00016438,2]
[330234626,1719202238833,-502.27483275,0.00016438,2]
[330234627,1719202238842,-501.77228858,0.00016438,2]
[330234628,1719202238852,-476.40589467,0.00016438,2]
[330234629,1719202238863,-500.56491295,0.00016438,2]
[330234630,1719202238872,-405.37856736,0.00016438,2]
[330234631,1719202238882,-500.0,0.00016438,2]
[330234632,1719202238891,-508.21546171,0.00016438,2]
[330234633,1719202238901,-500.0,0.00016438,2]
[330234634,1719202238911,-500.0,0.00016438,2]
[330234635,1719202238920,-302.15125626,0.00016438,2]
[330234636,1719202238929,-509.2487315,0.00016438,2]
[330234637,1719202238942,-500.30261718,0.00016438,2]
[330234638,1719202238951,-500.85564693,0.00016438,2]
[330234639,1719202238960,-500.0,0.00016438,2]
[330234640,1719202238970,-999.01,0.00016438,2]
[330234641,1719202238980,-500.0,0.00016438,2]
[330234642,1719202238990,-520.60915978,0.00016438,2]
[330234643,1719202238999,-326.51629993,0.00016438,2]
[330234644,1719202239009,-500.0,0.00016438,2]
[330234645,1719202239018,-500.0,0.00016438,2]
[330234646,1719202239028,-500.0,0.00016438,2]
[330234647,1719202239038,-500.17473438,0.00016438,2]
[330234648,1719202239047,-934.54,0.00016438,2]
[330234649,1719202239057,-506.80980554,0.00016438,2]
[330234650,1719202239067,-507.28086746,0.00016438,2]
[330234651,1719202239078,-191.26812037,0.00016438,2]
[330234652,1719202239092,-500.0,0.00016438,2]
[330234653,1719202239103,-504.61749582,0.00016438,2]
[330234654,1719202239113,-2269.33,0.00016438,2]
[330234655,1719202239128,-500.0,0.00016438,2]
[330234656,1719202239138,-500.0,0.00016438,2]
[330234657,1719202239148,-500.0,0.00016438,2]
[330234658,1719202239158,-500.19015306,0.00016438,2]
[330234659,1719202239168,-500.0,0.00016438,2]
[330234660,1719202239178,-500.0,0.00016438,2]
[330234661,1719202239187,-500.0,0.00016438,2]
[330234662,1719202239198,-231.39208007,0.00016438,2]
[330234663,1719202239208,-500.0,0.00016438,2]
[330234664,1719202239218,-500.0,0.00016438,2]
[330234665,1719202239233,-998.19,0.00016438,2]
[330234666,1719202239243,-570.42126745,0.00016438,2]
[330234667,1719202239252,-500.0,0.00016438,2]
[330234668,1719202239262,-1171.32,0.00016438,2]
[330234669,1719202239271,-581.18,0.00016438,2]
[330234670,1719202239281,-1297.32,0.00016438,2]
[330234671,1719202239290,-500.0,0.00016438,2]
[330234672,1719202239299,-580.38,0.00016438,2]
[330234673,1719202239308,-839.4,0.00016438,2]
[330234674,1719202239317,-478.51894101,0.00016438,2]
[330234675,1719202239327,-500.0,0.00016438,2]
[330234676,1719202239346,-500.0,0.00016438,2]
[330234677,1719202239357,-555.5,0.00016438,2]
[330234678,1719202239368,-688.87,0.00016438,2]
[330234679,1719202239378,-500.0,0.00016438,2]
[330234680,1719202239389,-500.0,0.00016438,2]
[330234681,1719202239400,-500.0,0.00016438,2]
[330234682,1719202239410,-414.34568095,0.00016438,2]
[330234683,1719202239421,-500.0,0.00016438,2]
[330234684,1719202239432,-514.00686213,0.00016438,2]
[330234685,1719202239443,-500.0,0.00016438,2]
[330234686,1719202239455,-500.0,0.00016438,2]
[330234687,1719202239466,-510.80072994,0.00016438,2]
[330234688,1719202239477,-514.65302917,0.00016438,2]
[330234689,1719202239486,-508.15839625,0.00016438,2]
[330234690,1719202239498,-500.0,0.00016438,2]
[330234691,1719202239508,-500.0,0.00016438,2]
[330234692,1719202239519,-473.21928333,0.00016438,2]
[330234693,1719202239529,-1077.69,0.00016438,2]
[330234694,1719202239539,-500.0,0.00016438,2]
[330234695,1719202239549,-500.0,0.00016438,2]
[330234696,1719202239560,-723.43,0.00016438,2]
[330234697,1719202239570,-500.0,0.00016438,2]
[330234698,1719202239580,-860.76,0.00016438,2]
[330234699,1719202239592,-455.9,0.00016438,2]
[330234700,1719202239602,-165.4,0.00016438,2]
[330234701,1719202239611,-530.15218146,0.00016438,2]
[330234702,1719202239621,-500.0,0.00016438,2]
[330234703,1719202239630,-503.89929827,0.00016438,2]
[330234704,1719202239642,-799.02,0.00016438,2]
[330234705,1719202239655,-500.0,0.00016438,2]
[330234706,1719202239665,-500.0,0.00016438,2]
[330234707,1719202239675,-500.0,0.00016438,2]
[330234708,1719202239687,-500.0,0.00016438,2]
[330234709,1719202239697,-500.0,0.00016438,2]
[330234710,1719202239707,-500.0,0.00016438,2]
[330234711,1719202239717,-4235.58,0.00016438,2]
[330234712,1719202239727,-1348.23,0.00016438,2]
[330234713,1719202239738,-525.94,0.00016438,2]
[330234714,1719202239748,-1097.6,0.00016438,2]
[330234715,1719202239758,-500.0,0.00016438,2]
[330234716,1719202239768,-500.0,0.00016438,2]
[330234717,1719202239778,-505.18948488,0.00016438,2]
[330234718,1719202239788,-500.0,0.00016438,2]
[330234719,1719202239799,-500.0,0.00016438,2]
[330234720,1719202239809,-23838.69,0.00016438,2]
[330234722,1719202239820,-946.65,0.00016438,2]
[330234723,1719202239829,-596.98,0.00016438,2]
[330234724,1719202239841,-500.0,0.00016438,2]
[330234725,1719202239851,-658.16,0.00016438,2]
[330234726,1719202239862,-1605.11,0.00016438,2]
[330234727,1719202239872,-500.0,0.00016438,2]
[330234729,1719202239882,-965.58,0.00016438,2]
[330234730,1719202239892,-2202.46,0.00016438,2]
[330234731,1719202239902,-500.0,0.00016438,2]
[330234732,1719202239911,-216.03417632,0.00016438,2]
[330234733,1719202239921,-612.08,0.00016438,2]
[330234734,1719202239931,-500.0,0.00016438,2]
[330234735,1719202239942,-500.0,0.00016438,2]
[330234737,1719202239952,-301.99780934,0.00016438,2]
[330234739,1719202239963,-500.0,0.00016438,2]
[330234740,1719202239972,-4179.54,0.00016438,2]
[330234741,1719202239982,-500.0,0.00016438,2]
[330234742,1719202239992,-956.05,0.00016438,2]
[330234743,1719202240001,-707.96,0.00016438,2]
[330234744,1719202240011,-769.56,0.00016438,2]
[330234745,1719202240020,-500.0,0.00016438,2]
[330234746,1719202240030,-500.0,0.00016438,2]
[330234747,1719202240039,-500.0,0.00016438,2]
[330234748,1719202240048,-1750.2,0.00016438,2]
[330234749,1719202240057,-500.0,0.00016438,2]
[330234750,1719202240067,-500.0,0.00016438,2]
[330234752,1719202240076,-772.5,0.00016438,2]
[330234753,1719202240087,-703.48,0.00016438,2]
[330234754,1719202240096,-2055.5,0.00016438,2]
[330234755,1719202240105,-1096.91,0.00016438,2]
[330234756,1719202240115,-4961.02,0.00016438,2]
[330234757,1719202240124,-2776.64,0.00016438,2]
[330234758,1719202240134,-3235.76,0.00016438,2]
[330234759,1719202240144,-500.0,0.00016438,2]
[330234760,1719202240153,-553.37,0.00016438,2]
[330234761,1719202240163,-16189.28,0.00016438,2]
[330234762,1719202240172,-500.0,0.00016438,2]
[330234763,1719202240182,-5279.35,0.00016438,2]
[330234764,1719202240191,-500.0,0.00016438,2]
[330234766,1719202240200,-500.0,0.00016438,2]
[330234767,1719202240210,-500.0,0.00016438,2]
[330234768,1719202240219,-4816.23,0.00016438,2]
[330234769,1719202240228,-500.0,0.00016438,2]
[330234770,1719202240237,-6036.37304421,0.00016438,2]
[330234771,1719202240253,-1769.86129873,0.00016438,2]
[330234772,1719202240293,-8603.22565706,0.00016438,2]
[330234773,1719202240303,-500.0,0.00016438,2]
[330234774,1719202240312,-500.0,0.00016438,2]
[330234775,1719202240321,-500.0,0.00016438,2]
[330234776,1719202240330,-625.6,0.00016438,2]
[330234777,1719202240341,-315.08132856,0.00016438,2]
[330234778,1719202240351,-1040.58,0.00016438,2]
[330234779,1719202240360,-509.00876116,0.00016438,2]
[330234780,1719202240369,-9207.0544258,0.00016438,2]
[330234792,1719202242725,-1313.011853,0.00015722,2]
[330234793,1719202242738,-2040.86341693,0.00015838,2]
[330234795,1719202242798,-88.36863447,0.00015838,2]
[330234797,1719202242807,-1117.74863961,0.00015921,2]
[330234798,1719202242817,-6972.7816651,0.00016022,2]
[330234799,1719202242826,-2262.3755742,0.00016438,2]
[330234800,1719202242838,-1248.32,0.00016438,2]
[330234801,1719202242847,-466.19365626,0.00016438,2]
[330234802,1719202242858,-34.63634374,0.00016438,2]
[330234804,1719202242867,-151.0,0.00016438,2]
[330234806,1719202242877,-151.0,0.00016438,2]
[330234807,1719202242886,-151.0,0.00016438,2]
[330234809,1719202242895,-203.868036,0.00016438,2]
[330234811,1719202242905,-500.0,0.00016438,2]
[330234812,1719202242914,-1110.46,0.00016438,2]
[330234814,1719202242923,-205.30071356,0.00016438,2]
[330234843,1719202243576,-294.69928644,0.00016438,2]
[330234844,1719202243587,-278.59108844,0.00016438,2]
[330234845,1719202243598,-1765.29687565,0.00016438,2]
[330234846,1719202243845,-81.76943853,0.00016438,2]
[330234875,1719202246582,-195.47966853,0.00015124,2]
[330234876,1719202246595,-2115.26284951,0.00015439,2]
[330234877,1719202246606,-516.79936011,0.00016401,2]
[330234878,1719202246616,-2456.46394477,0.00016438,2]
[330234879,1719202246653,-270.37865261,0.00016438,2]
[330234880,1719202246663,-500.0,0.00016438,2]
[330234881,1719202246672,-353.83701966,0.00016438,2]
[330234882,1719202246682,-2174.82445043,0.00016438,2]
[330234884,1719202420886,3000.0,0.000225,30]
[330234888,1719203011258,3000.0,0.000225,30]
[330234889,1719203228155,-154.70745143,0.00014506,2]
[330234890,1719203250096,-188.39417627,0.00014506,2]
[330234891,1719203252101,-156.8983723,0.00014506,2]
[330234892,1719203252121,-990.65106447,0.00015267,2]
[330234893,1719203252139,-2040.81356743,0.00015838,2]
[330234894,1719203252160,-318.0694556,0.00015881,2]
[330234895,1719203252180,-3923.79380918,0.00015883,2]
[330234896,1719203252202,-1755.24962935,0.00015901,2]
[330234897,1719203252219,-10562.28786365,0.00015933,2]
[330234898,1719203252237,-17227.699458,0.00015999,2]
[330234899,1719203252256,-531.11088939,0.00016001,2]
[330234900,1719203252275,-179.54081427,0.00016017,2]
[330234901,1719203252294,-627.00263973,0.00016017,2]
[330234902,1719203252315,-154.79103211,0.00016018,2]
[330234903,1719203252334,-402.64531294,0.00016023,2]
[330234904,1719203252354,-208.78500633,0.00016023,2]
[330234905,1719203252373,-157.19006853,0.00016023,2]
[330234906,1719203252392,-154.79103211,0.00016134,2]
[330234907,1719203252411,-242.54242481,0.00016149,2]
[330234908,1719203252429,-500.0,0.0001615,2]
[330234909,1719203252450,-161.31499251,0.00016192,2]
[330234910,1719203252470,-154.79103211,0.00016192,2]
[330234911,1719203252488,-154.79103211,0.00016275,2]
[330234912,1719203252506,-723.78639686,0.00016275,2]
[330234913,1719203252525,-154.79103211,0.00016294,2]
[330234914,1719203252544,-876.0,0.00016295,2]
[330234915,1719203252563,-205.754624,0.000164,2]
[330234916,1719203252582,-205.754624,0.000164,2]
[330234917,1719203252600,-205.754624,0.000164,2]
[330234918,1719203252619,-205.754624,0.000164,2]
[330234919,1719203252637,-204.8169865,0.000164,2]
[330234920,1719203252656,-1000.0,0.00016437,2]
[330234921,1719203252674,-1000.0,0.00016437,2]
[330234922,1719203252693,-1000.0,0.00016437,2]
[330234923,1719203252713,-1000.0,0.00016437,2]
[330234924,1719203252732,-152.32102808,0.00016438,2]
[330234925,1719203252752,-500.0,0.00016438,2]
[330234926,1719203252770,-501.18299956,0.00016438,2]
[330234927,1719203252789,-501.77905472,0.00016438,2]
[330234928,1719203252808,-500.0,0.00016438,2]
[330234929,1719203252827,-500.0,0.00016438,2]
[330234930,1719203252845,-500.0,0.00016438,2]
[330234931,1719203252865,-500.0,0.00016438,2]
[330234932,1719203252885,-598.3760078,0.00016438,2]
[330234933,1719203252905,-159.0401425,0.00016438,2]
[330234934,1719203252926,-500.0,0.00016438,2]
[330234935,1719203252944,-508.55881966,0.00016438,2]
[330234936,1719203252967,-500.0,0.00016438,2]
[330234937,1719203252985,-500.0,0.00016438,2]
[330234938,1719203253006,-500.0,0.00016438,2]
[330234939,1719203253026,-500.74752895,0.00016438,2]
[330234940,1719203253047,-500.0,0.00016438,2]
[330234941,1719203253067,-519.27363421,0.00016438,2]
[330234942,1719203253086,-500.71780753,0.00016438,2]
[330234943,1719203253106,-500.0,0.00016438,2]
[330234944,1719203253126,-506.80980554,0.00016438,2]
[330234945,1719203253145,-507.28086746,0.00016438,2]
[330234946,1719203253165,-500.0,0.00016438,2]
[330234947,1719203253185,-326.51629993,0.00016438,2]
[330234948,1719203253205,-957.39,0.00016438,2]
[330234949,1719203253351,-502.7829354,0.00016438,2]
[330234950,1719203253373,-500.0,0.00016438,2]
[330234951,1719203253392,-500.0,0.00016438,2]
[330234952,1719203253411,-500.0,0.00016438,2]
[330234953,1719203253430,-504.61749582,0.00016438,2]
[330234954,1719203253450,-501.08719934,0.00016438,2]
[330234955,1719203253470,-500.17473438,0.00016438,2]
[330234956,1719203253489,-500.0,0.00016438,2]
[330234957,1719203253507,-506.85726941,0.00016438,2]
[330234958,1719203253526,-500.0,0.00016438,2]
[330234959,1719203253547,-610.54721276,0.00016438,2]
[330234960,1719203253566,-500.0,0.00016438,2]
[330234961,1719203253584,-525.94,0.00016438,2]
[330234962,1719203253603,-191.26812037,0.00016438,2]
[330234963,1719203253623,-500.0,0.00016438,2]
[330234964,1719203253642,-965.58,0.00016438,2]
[330234965,1719203253661,-500.19015306,0.00016438,2]
[330234966,1719203253679,-500.0,0.00016438,2]
[330234967,1719203253698,-500.0,0.00016438,2]
[330234968,1719203253716,-956.05,0.00016438,2]
[330234969,1719203253735,-504.29479122,0.00016438,2]
[330234970,1719203253755,-500.0,0.00016438,2]
[330234971,1719203253774,-517.56170255,0.00016438,2]
[330234972,1719203253793,-769.56,0.00016438,2]
[330234973,1719203253812,-284.52366658,0.00016438,2]
[330234974,1719203253831,-504.26966957,0.00016438,2]
[330234975,1719203253851,-514.1812268,0.00016438,2]
[330234976,1719203253871,-1750.2,0.00016438,2]
[330234977,1719203253890,-500.32713276,0.00016438,2]
[330234978,1719203253910,-500.0,0.00016438,2]
[330234979,1719203253930,-500.0,0.00016438,2]
[330234980,1719203253952,-500.0,0.00016438,2]
[330234981,1719203253980,-505.6606314,0.00016438,2]
[330234982,1719203254001,-503.25460197,0.00016438,2]
[330234983,1719203254021,-415.5871649,0.00016438,2]
[330234984,1719203254045,-1096.91,0.00016438,2]
[330234985,1719203254066,-500.0,0.00016438,2]
[330234986,1719203254087,-500.0,0.00016438,2]
[330234987,1719203254108,-500.0,0.00016438,2]
[330234988,1719203254130,-553.37,0.00016438,2]
[330234989,1719203254151,-628.21,0.00016438,2]
[330234990,1719203254173,-703.48,0.00016438,2]
[330234991,1719203254195,-502.06858797,0.00016438,2]
[330234992,1719203254217,-500.0,0.00016438,2]
[330234993,1719203254238,-500.0,0.00016438,2]
[330234994,1719203254259,-500.0,0.00016438,2]
[330234995,1719203254278,-500.0,0.00016438,2]
[330234996,1719203254298,-599.53,0.00016438,2]
[330234997,1719203254319,-500.0,0.00016438,2]
[330234998,1719203254337,-500.0,0.00016438,2]